bitfinex-derivatives/quotes_ETHF0:USTF0_20230701
["timestamp","ask_amount","ask_price","bid_price","bid_amount"]
[1688231734338,3.69294434,1919.3,1919.2,0.31266]
[1688231734641,4.00557434,1919.3,1919.2,0.31266]
[1688231735636,3.69294434,1919.3,1919.2,0.31266]
[1688231736539,3.69294434,1919.3,1919.2,0.41666]
[1688231736849,0.42694434,1919.3,1919.2,3.69866]
[1688231737139,3.27181535,1919.5,1919.2,3.69866]
[1688231737343,3.67912233,1919.5,1919.4,3.52041]
[1688231739546,3.99173233,1919.5,1919.4,3.52041]
[1688231740248,3.67912233,1919.5,1919.4,3.52041]
[1688231742051,0.41512233,1919.5,1919.4,3.52041]
[1688231745154,0.72773233,1919.5,1919.4,3.52041]
[1688231745955,0.41512233,1919.5,1919.4,3.52041]
[1688231752069,0.41512233,1919.5,1919.4,6.80241]
[1688231753466,0.72773233,1919.5,1919.4,6.80241]
[1688231753663,4.29644868,1919.5,1919.4,0.31261]
[1688231754574,5.23514579,1919.5,1919.4,0.31261]
[1688231762774,4.63581944,1919.5,1919.4,3.52041]
[1688231762974,1.35381944,1919.5,1919.4,3.52041]
[1688231763575,1.35381944,1919.5,1919.4,0.31261]
[1688231763881,1.35381944,1919.5,1919.4,3.52041]
[1688231764476,1.66641944,1919.5,1919.4,3.52041]
[1688231764770,1.35381944,1919.5,1919.4,3.52041]
[1688231765780,5.23513579,1919.5,1919.4,0.31261]
[1688231766485,4.94841944,1919.5,1919.4,0.31261]
[1688231771593,5.23513579,1919.5,1919.4,0.31261]
[1688231772794,4.94841944,1919.5,1919.4,0.31261]
[1688231772995,4.63581944,1919.5,1919.4,0.31261]
[1688231773196,1.35381944,1919.5,1919.4,3.59461]
[1688231773393,0.41512233,1919.5,1919.4,3.59461]
[1688231777995,0.00781535,1919.5,1919.4,3.59461]
[1688231778301,0.00781535,1919.5,1919.4,8.80241]
[1688231781001,0.00781535,1919.5,1919.4,14.09401]
[1688231783795,0.00781535,1919.5,1919.4,14.50656699]
[1688231787504,10.83019711,1920.0,1919.5,0.56748412]
[1688231787703,10.83019711,1920.0,1919.9,3.2078]
[1688231787898,11.25658925,1920.0,1919.9,3.52033]
[1688231788098,11.25658925,1920.0,1919.9,4.08781412]
[1688231789611,11.25658925,1920.0,1919.9,7.36981412]
[1688231790107,10.31789214,1920.0,1919.9,7.36981412]
[1688231791504,10.5059034,1920.0,1919.9,7.36981412]
[1688231792406,5.4633034,1920.0,1919.9,7.36981412]
[1688231792612,0.6652984,1920.0,1919.9,7.36981412]
[1688231793108,0.74162431,1920.0,1919.9,7.36981412]
[1688231802815,0.31523217,1920.0,1919.9,7.36981412]
[1688231805317,0.31523217,1920.0,1919.9,7.47381412]
[1688231806316,0.31523217,1920.0,1919.9,7.36981412]
[1688231815429,0.60194852,1920.0,1919.9,7.36981412]
[1688231815922,0.31523217,1920.0,1919.9,7.36981412]
[1688231827930,0.26537457,1920.0,1919.9,7.36981412]
[1688231828236,0.36377448,1920.0,1919.9,7.36981412]
[1688231857351,0.65049083,1920.0,1919.9,7.36981412]
[1688231859259,0.36377448,1920.0,1919.9,7.36981412]
[1688231860452,0.32732369,1920.0,1919.9,7.36981412]
[1688231884273,0.61404004,1920.0,1919.9,7.36981412]
[1688231884478,0.32732369,1920.0,1919.9,7.36981412]
[1688231900387,0.61404004,1920.0,1919.9,7.36981412]
[1688231900588,0.61404004,1920.0,1919.9,6.80233]
[1688231902894,0.32732369,1920.0,1919.9,6.80233]
[1688231903297,0.61404004,1920.0,1919.9,6.80233]
[1688231911996,0.32732369,1920.0,1919.9,6.80233]
[1688231926112,0.61404004,1920.0,1919.9,6.80233]
[1688231929825,0.32732369,1920.0,1919.9,6.80233]
[1688231936537,0.61404004,1920.0,1919.9,6.80233]
[1688231937832,0.32732369,1920.0,1919.9,6.80233]
[1688231949950,0.61404004,1920.0,1919.9,6.80233]
[1688231950443,0.32732369,1920.0,1919.9,6.80233]
[1688231972664,0.27642869,1920.0,1919.9,6.80233]
[1688231972859,0.28283281,1920.0,1919.9,6.80233]
[1688231977869,0.56954916,1920.0,1919.9,6.80233]
[1688231978073,0.28283281,1920.0,1919.9,6.80233]
[1688231982261,0.56954916,1920.0,1919.9,6.80233]
[1688231985766,0.28283281,1920.0,1919.9,6.80233]
[1688231986268,0.35919454,1920.0,1919.9,6.80233]
[1688231987767,0.64591089,1920.0,1919.9,6.80233]
[1688231990166,0.35919454,1920.0,1919.9,6.80233]
[1688231991968,0.64591089,1920.0,1919.9,6.80233]
[1688231992163,0.95841089,1920.0,1919.9,6.80233]
[1688231993670,0.95841089,1920.0,1919.9,6.80133]
[1688231999370,0.67169454,1920.0,1919.9,6.80133]
[1688231999767,0.64591089,1920.0,1919.9,6.80133]
[1688232002880,0.95841089,1920.0,1919.9,6.80133]
[1688232004672,4.22441089,1920.0,1919.9,3.52033]
[1688232005583,4.22441089,1920.0,1919.9,0.31253]
[1688232005970,3.86521635,1920.0,1919.9,0.31253]
[1688232009777,3.88121635,1920.0,1919.9,0.31253]
[1688232009972,3.88121635,1920.0,1919.8,1.20776276]
[1688232010177,3.90682999,1919.9,1919.8,1.20776276]
[1688232011380,3.90682999,1919.9,1919.8,0.42642276]
[1688232011581,3.90682999,1919.9,1919.8,0.73895276]
[1688232012081,4.01082999,1919.9,1919.8,0.3203427]
[1688232012288,4.01082999,1919.9,1919.7,0.78135]
[1688232012289,4.9495271,1919.9,1919.7,0.78135]
[1688232012470,3.88124635,1919.8,1919.7,0.78135]
[1688232012875,3.98524635,1919.8,1919.7,0.78135]
[1688232014075,3.98524635,1919.8,1919.6,1.0469996]
[1688232014277,3.87785999,1919.7,1919.6,1.0469996]
[1688232014784,3.98185999,1919.7,1919.6,0.0052096]
[1688232014993,3.98185999,1919.7,1919.3,4.14554]
[1688232015188,3.282,1919.5,1919.3,4.14554]
[1688232015381,0.91162634,1919.4,1919.3,3.52041]
[1688232015581,1.01562634,1919.4,1919.3,3.52041]
[1688232019786,1.01562634,1919.4,1919.3,3.60102154]
[1688232020695,0.91162634,1919.4,1919.3,3.60102154]
[1688232026894,4.16462634,1919.4,1919.3,3.60102154]
[1688232028406,4.57626122,1919.4,1919.3,3.60102154]
[1688232032201,4.16462634,1919.4,1919.3,3.60102154]
[1688232040496,4.16462634,1919.4,1919.3,0.39322154]
[1688232040701,4.16462634,1919.4,1919.3,0.08061154]
[1688232042609,4.16462634,1919.4,1919.3,0.39323154]
[1688232044611,3.282,1919.4,1919.3,3.60103154]
[1688232044909,0.41100936,1919.5,1919.3,6.88303154]
[1688232045099,0.72359936,1919.5,1919.3,6.88303154]
[1688232045304,0.31259,1919.5,1919.3,6.88303154]
[1688232045804,0.31259,1919.5,1919.3,7.45051566]
[1688232046913,0.59930635,1919.5,1919.3,7.45051566]
[1688232052208,3.86330635,1919.5,1919.3,4.16851566]
[1688232061231,3.86330635,1919.5,1919.3,3.60103154]
[1688232064929,3.86330635,1919.5,1919.3,8.52453154]
[1688232069044,0.31230999,1919.4,1919.3,8.52453154]
[1688232069230,0.62490999,1919.4,1919.3,8.52453154]
[1688232069735,1.56306226,1919.4,1919.3,8.52453154]
[1688232070735,1.56306226,1919.4,1919.3,3.60103154]
[1688232072040,4.82906226,1919.4,1919.3,3.60103154]
[1688232077141,4.82906226,1919.4,1919.3,3.28841154]
[1688232077142,4.93306226,1919.4,1919.3,3.28841154]
[1688232077644,4.93306226,1919.4,1919.3,0.08061154]
[1688232077940,4.93306226,1919.4,1919.1,0.31262]
[1688232078142,3.57663,1919.2,1919.1,0.31262]
[1688232078337,3.88893999,1919.2,1919.1,0.31262]
[1688232078540,4.82709226,1919.2,1919.1,0.31262]
[1688232079747,4.82709226,1919.2,1919.1,0.3951301]
[1688232091547,3.253,1919.3,1919.1,0.3951301]
[1688232091756,0.31258,1919.6,1919.2,6.5928]
[1688232092047,3.282,1919.7,1919.6,0.31257]
[1688232092246,3.88126635,1919.7,1919.6,0.31257]
[1688232092645,4.30641638,1919.7,1919.6,0.31257]
[1688232094654,4.38405651,1919.7,1919.6,0.31257]
[1688232115492,4.09734016,1919.7,1919.6,0.31257]
[1688232117691,4.38405651,1919.7,1919.6,0.31257]
[1688232119090,4.38405651,1919.7,1919.5,0.78142]
[1688232119293,3.59457,1919.6,1919.5,0.78142]
[1688232119492,3.98454967,1919.6,1919.5,0.78142]
[1688232122499,4.92269661,1919.6,1919.5,0.78142]
[1688232129307,4.61038662,1919.6,1919.5,0.78142]
[1688232217280,1.01581662,1919.6,1919.5,4.09322]
[1688232217581,3.70715003,1919.7,1919.5,4.09322]
[1688232217776,3.70715003,1919.7,1919.6,0.56748412]
[1688232217979,3.76848058,1919.7,1919.6,0.88006412]
[1688232219078,3.76848058,1919.7,1919.6,0.98406412]
[1688232228989,3.76848058,1919.7,1919.6,0.88006412]
[1688232235090,3.76848058,1919.7,1919.6,0.31258]
[1688232235882,4.05519693,1919.7,1919.6,0.31258]
[1688232236396,4.36775693,1919.7,1919.6,0.31258]
[1688232237490,5.30590387,1919.7,1919.6,0.31258]
[1688232243797,4.70662752,1919.7,1919.6,0.31258]
[1688232245201,3.76848058,1919.7,1919.6,0.31258]
[1688232249502,4.05519693,1919.7,1919.6,0.31258]
[1688232249900,4.36775693,1919.7,1919.6,0.31258]
[1688232254908,7.64975693,1919.7,1919.6,0.31258]
[1688232258598,7.64975693,1919.7,1919.5,0.78142]
[1688232258805,3.282,1919.6,1919.5,0.78142]
[1688232259003,3.96826865,1919.6,1919.5,0.78142]
[1688232259205,4.90641559,1919.6,1919.5,0.78142]
[1688232266907,4.5941056,1919.6,1919.5,0.78142]
[1688232268514,4.88082195,1919.6,1919.5,0.78142]
[1688232270917,4.88082195,1919.6,1919.5,0.31259]
[1688232297429,4.2815256,1919.6,1919.5,0.31259]
[1688232297731,3.65595866,1919.6,1919.5,0.31259]
[1688232298032,4.88082195,1919.6,1919.5,0.31259]
[1688232298235,3.94267501,1919.6,1919.5,0.31259]
[1688232303529,3.65595866,1919.6,1919.5,0.31259]
[1688232304429,3.94267501,1919.6,1919.5,0.31259]
[1688232305033,4.88082195,1919.6,1919.5,0.31259]
[1688232306531,4.5941056,1919.6,1919.5,0.31259]
[1688232307936,4.88082195,1919.6,1919.5,0.31259]
[1688232317047,4.5941056,1919.6,1919.5,0.31259]
[1688232321157,4.88082195,1919.6,1919.5,0.31259]
[1688232321952,3.65595866,1919.6,1919.5,0.31259]
[1688232324761,3.34337866,1919.6,1919.5,0.31259]
[1688232325155,3.34337866,1919.6,1919.5,0.41659]
[1688232326855,3.65594866,1919.6,1919.5,0.41659]
[1688232329668,3.34337866,1919.6,1919.5,0.41659]
[1688232331768,3.65594866,1919.6,1919.5,0.41659]
[1688232332269,3.65594866,1919.6,1919.5,0.31259]
[1688232332765,3.34337866,1919.6,1919.5,0.31259]
[1688232333762,3.65594866,1919.6,1919.5,0.31259]
[1688232334765,3.34337866,1919.6,1919.5,0.31259]
[1688232334969,3.65594866,1919.6,1919.5,0.31259]
[1688232335468,3.34337866,1919.6,1919.5,0.31259]
[1688232335671,0.06137866,1919.6,1919.5,0.31259]
[1688232336058,0.06137866,1919.6,1919.5,0.82372552]
[1688232336363,4.20214694,1919.9,1919.6,0.104]
[1688232336569,3.264,1919.9,1919.8,3.52034]
[1688232339570,3.68651302,1919.9,1919.8,3.52034]
[1688232339772,3.99904302,1919.9,1919.8,3.52034]
[1688232341559,4.93718996,1919.9,1919.8,3.52034]
[1688232345876,5.22390631,1919.9,1919.8,3.52034]
[1688232349664,5.28697323,1919.9,1919.8,3.52034]
[1688232351477,5.28697323,1919.9,1919.7,0.78137]
[1688232351775,2.02297323,1919.9,1919.8,0.31255]
[1688232352071,5.37997323,1919.9,1919.8,0.31255]
[1688232352276,5.69228322,1919.9,1919.8,0.31255]
[1688232356471,5.58828322,1919.9,1919.8,0.31255]
[1688232356979,4.98925688,1919.9,1919.8,0.31255]
[1688232357172,5.27597323,1919.9,1919.8,0.31255]
[1688232378285,8.48377323,1919.9,1919.6,10.85809]
[1688232378484,9.7558,1919.7,1919.4,0.31256]
[1688232378788,3.266,1919.5,1919.4,0.31256]
[1688232379092,3.64168809,1919.5,1919.4,0.31256]
[1688232379291,3.95399808,1919.5,1919.4,0.31256]
[1688232391191,4.89214502,1919.5,1919.4,0.31256]
[1688232392701,5.31059931,1919.5,1919.4,0.31256]
[1688232398500,5.24750122,1919.5,1919.4,0.31256]
[1688232409507,8.45530122,1919.5,1919.4,0.31256]
[1688232413307,8.45530122,1919.5,1919.2,5.86294]
[1688232413504,3.266,1919.3,1919.2,0.93784]
[1688232413700,3.89093999,1919.3,1919.2,0.93784]
[1688232414005,4.82908693,1919.3,1919.2,1.06211101]
[1688232427320,5.25058981,1919.3,1919.2,1.06211101]
[1688232428719,4.93827982,1919.3,1919.2,1.06211101]
[1688232428927,3.68750288,1919.3,1919.2,1.06211101]
[1688232429317,1.71963694,1919.6,1919.2,4.26991101]
[1688232429519,3.266,1919.5,1919.4,3.2078]
[1688232429816,3.266,1919.5,1919.4,3.64763699]
[1688232430214,3.266,1919.5,1919.4,4.31912111]
[1688232431526,3.5786,1919.5,1919.4,4.31912111]
[1688232433314,3.86531635,1919.5,1919.4,4.31912111]
[1688232434329,3.5786,1919.5,1919.4,4.31912111]
[1688232436831,3.86531635,1919.5,1919.4,4.31912111]
[1688232437624,3.86531635,1919.5,1919.4,3.64763699]
[1688232446532,8.93811635,1919.5,1919.4,3.64763699]
[1688232447826,8.93811635,1919.5,1919.4,0.43983699]
[1688232457243,9.35900457,1919.5,1919.4,0.43983699]
[1688232464448,10.29715151,1919.5,1919.4,0.43983699]
[1688232472351,10.01043516,1919.5,1919.4,0.43983699]
[1688232473950,10.29715151,1919.5,1919.4,0.43983699]
[1688232474753,9.35900457,1919.5,1919.4,0.43983699]
[1688232482459,9.07228822,1919.5,1919.4,0.43983699]
[1688232484860,9.35900457,1919.5,1919.4,0.43983699]
[1688232495567,9.07228822,1919.5,1919.4,0.43983699]
[1688232496767,9.35900457,1919.5,1919.4,0.43983699]
[1688232501568,3.68688822,1919.5,1919.4,0.43983699]
[1688232501863,3.266,1919.5,1919.4,0.43983699]
[1688232502069,4.19114694,1919.6,1919.4,0.54383699]
[1688232502268,3.253,1919.6,1919.5,0.88008412]
[1688232502666,3.253,1919.6,1919.5,1.00727889]
[1688232503569,3.253,1919.6,1919.5,1.11127889]
[1688232504264,3.67501624,1919.6,1919.5,1.11127889]
[1688232504468,3.98759624,1919.6,1919.5,1.11127889]
[1688232504971,4.27431259,1919.6,1919.5,1.00727889]
[1688232505770,4.27431259,1919.6,1919.5,0.88008412]
[1688232507168,4.27431259,1919.6,1919.5,1.00727694]
[1688232507372,4.27431259,1919.6,1919.5,0.43979282]
[1688232507576,5.21245953,1919.6,1919.5,0.43979282]
[1688232508970,4.92574318,1919.6,1919.5,0.43979282]
[1688232509174,3.98759624,1919.6,1919.5,0.43979282]
[1688232510978,4.27431259,1919.6,1919.5,0.43979282]
[1688232511171,3.98759624,1919.6,1919.5,0.43979282]
[1688232513891,4.27431259,1919.6,1919.5,0.43979282]
[1688232520798,4.37831259,1919.6,1919.5,0.12719282]
[1688232521107,5.104,1919.5,1919.1,0.93788]
[1688232521405,3.264,1919.2,1919.1,0.93788]
[1688232521606,3.86336635,1919.2,1919.1,0.93788]
[1688232521896,4.17567634,1919.2,1919.1,0.93788]
[1688232522406,7.38347634,1919.2,1919.1,0.93788]
[1688232529511,6.78445,1919.2,1919.1,0.93788]
[1688232529709,6.78445,1919.2,1919.1,1.05996023]
[1688232530710,3.57666,1919.2,1919.1,1.05996023]
[1688232531303,3.86337635,1919.2,1919.1,1.05996023]
[1688232531504,4.28139991,1919.2,1919.1,1.05996023]
[1688232534906,3.99468356,1919.2,1919.1,1.05996023]
[1688232537013,3.57666,1919.2,1919.1,1.05996023]
[1688232547924,3.264,1919.2,1919.1,1.05996023]
[1688232548217,1.35350174,1919.3,1919.1,1.05996023]
[1688232548425,0.4153548,1919.3,1919.2,0.56748412]
[1688232548723,3.282,1919.4,1919.2,1.00730875]
[1688232548921,3.282,1919.4,1919.2,5.80260875]
[1688232549120,1.71969694,1919.5,1919.2,9.08460875]
[1688232549324,1.71969694,1919.5,1919.2,12.29240875]
[1688232549527,0.78155,1919.5,1919.2,12.29240875]
[1688232550119,1.2064276,1919.5,1919.2,12.29240875]
[1688232552528,0.4248776,1919.5,1919.2,12.29240875]
[1688232552825,4.50373694,1919.6,1919.2,12.29240875]
[1688232553027,3.56559,1919.6,1919.2,12.29240875]
[1688232553226,3.98511631,1919.6,1919.2,12.29240875]
[1688232556938,3.67252631,1919.6,1919.2,12.29240875]
[1688232557824,3.67252631,1919.6,1919.2,12.70441985]
[1688232560032,3.68552631,1919.6,1919.3,3.282]
[1688232560236,3.68552631,1919.6,1919.4,0.88010412]
[1688232561044,3.68552631,1919.6,1919.4,5.97140412]
[1688232562144,0.41952631,1919.6,1919.4,9.25240412]
[1688232562446,10.08350694,1919.7,1919.4,9.25240412]
[1688232562745,9.72877607,1919.7,1919.4,9.25240412]
[1688232565945,10.04134607,1919.7,1919.4,9.25240412]
[1688232567246,0.28671635,1919.6,1919.4,9.25240412]
[1688232567446,0.31259,1919.6,1919.4,9.25240412]
[1688232572946,10.51024607,1919.7,1919.4,9.25240412]
[1688232573146,0.31261,1919.6,1919.4,9.25240412]
[1688232574449,0.59932635,1919.6,1919.4,9.25240412]
[1688232574850,0.59932635,1919.6,1919.5,0.12716391]
[1688232575052,0.59932635,1919.6,1919.5,0.43978391]
[1688232578052,10.82255606,1919.7,1919.5,0.43978391]
[1688232578355,10.51024607,1919.7,1919.5,0.43978391]
[1688232585261,10.79696242,1919.7,1919.5,0.43978391]
[1688232600669,0.31230999,1919.6,1919.5,0.43978391]
[1688232600872,0.62490999,1919.6,1919.5,0.43978391]
[1688232602066,3.90690999,1919.6,1919.5,0.43978391]
[1688232607679,7.18970999,1919.6,1919.5,0.12716391]
[1688232607872,8.12785693,1919.6,1919.5,0.12716391]
[1688232608271,8.12785693,1919.6,1919.5,0.43978391]
[1688232608477,8.12785693,1919.6,1919.5,0.31262]
[1688232609275,8.12785693,1919.6,1919.4,0.31263]
[1688232609472,4.87485693,1919.6,1919.5,0.31262]
[1688232609668,7.18970999,1919.6,1919.5,0.31262]
[1688232609983,8.12785693,1919.6,1919.5,0.46900306]
[1688232610183,8.41457328,1919.6,1919.5,0.15638306]
[1688232610375,8.41457328,1919.6,1919.5,0.46900306]
[1688232611481,8.41457328,1919.6,1919.5,0.15638306]
[1688232611679,8.41457328,1919.6,1919.5,0.46900306]
[1688232612180,4.81605693,1919.6,1919.5,0.46900306]
[1688232612384,8.02385693,1919.6,1919.5,0.46900306]
[1688232612580,8.31057328,1919.6,1919.5,0.46900306]
[1688232613284,4.50374694,1919.6,1919.5,0.46900306]
[1688232613679,0.93814694,1919.6,1919.5,0.46900306]
[1688232613894,10.52624607,1919.7,1919.5,0.46900306]
[1688232614384,1.36487607,1919.7,1919.6,0.88008412]
[1688232614687,0.42672913,1919.7,1919.6,1.03551825]
[1688232614977,3.56557,1919.8,1919.6,1.03551825]
[1688232615284,3.56557,1919.8,1919.6,0.98344224]
[1688232616977,3.85228635,1919.8,1919.6,0.41595812]
[1688232617279,3.88886999,1919.7,1919.6,0.41595812]
[1688232617589,3.88886999,1919.7,1919.6,0.13264233]
[1688232617880,3.88886999,1919.7,1919.6,0.44524233]
[1688232632206,3.57656,1919.7,1919.6,0.44524233]
[1688232635303,3.86327635,1919.7,1919.6,0.44524233]
[1688232636405,4.80142329,1919.7,1919.6,0.44524233]
[1688232637102,4.80142329,1919.7,1919.6,0.13264233]
[1688232637803,4.80142329,1919.7,1919.4,5.62283]
[1688232638003,0.31261,1919.5,1919.4,5.62283]
[1688232638399,3.86332635,1919.5,1919.4,5.62283]
[1688232638598,4.80147329,1919.5,1919.4,5.62283]
[1688232641410,3.86332635,1919.5,1919.4,5.62283]
[1688232642108,3.86532635,1919.5,1919.4,5.62283]
[1688232645410,3.266,1919.5,1919.4,5.62283]
[1688232646313,3.5786,1919.5,1919.4,5.62283]
[1688232649208,3.5786,1919.5,1919.4,5.69263915]
[1688232650207,3.9880448,1919.5,1919.4,5.69263915]
[1688232653413,4.27476115,1919.5,1919.4,5.69263915]
[1688232656121,5.21290809,1919.5,1919.4,5.69263915]
[1688232659922,4.92619174,1919.5,1919.4,5.69263915]
[1688232662131,5.21290809,1919.5,1919.4,5.69263915]
[1688232662431,5.21290809,1919.5,1919.4,0.38243915]
[1688232663130,5.31690809,1919.5,1919.4,0.38243915]
[1688232663319,5.31490809,1919.5,1919.4,0.38243915]
[1688232667335,5.21090809,1919.5,1919.4,0.38243915]
[1688232674142,5.21090809,1919.5,1919.4,0.06980915]
[1688232679237,5.21090809,1919.5,1919.4,0.38240915]
[1688232683543,5.21090809,1919.5,1919.4,0.06980915]
[1688232683745,5.21090809,1919.5,1919.2,4.8493]
[1688232683949,3.266,1919.3,1919.2,0.31263]
[1688232684239,3.86533635,1919.3,1919.2,0.31263]
[1688232684542,4.80348329,1919.3,1919.2,0.31263]
[1688232687339,4.80348329,1919.3,1919.0,6.0063]
[1688232687537,3.2078,1919.1,1919.0,6.0063]
[1688232687744,3.80717635,1919.1,1919.0,5.53737]
[1688232687940,4.74532329,1919.1,1919.0,5.53737]
[1688232691546,4.74532329,1919.1,1919.0,5.2247]
[1688232691752,8.00932329,1919.1,1919.0,5.53737]
[1688232694349,8.00932329,1919.1,1919.0,5.60880436]
[1688232699048,11.29132329,1919.1,1919.0,0.1611292]
[1688232699247,11.29132329,1919.1,1918.8,0.31272]
[1688232699561,3.253,1918.9,1918.8,5.61272]
[1688232699761,3.85241635,1918.9,1918.8,5.61272]
[1688232700055,7.06021635,1918.9,1918.8,5.61272]
[1688232709369,7.06021635,1918.9,1918.8,5.77574835]
[1688232709566,6.4608,1918.9,1918.8,5.77574835]
[1688232709872,3.59469,1919.0,1918.8,5.77574835]
[1688232712270,4.19371634,1919.0,1918.8,5.77574835]
[1688232712474,3.264,1918.9,1918.8,5.77574835]
[1688232712775,3.5767,1918.9,1918.8,5.77574835]
[1688232713071,8.7558,1918.9,1918.8,5.77574835]
[1688232713276,9.69394694,1918.9,1918.8,5.77574835]
[1688232714175,9.69394694,1918.9,1918.8,0.47574835]
[1688232722171,4.20214694,1918.9,1918.8,0.47574835]
[1688232722368,3.264,1918.9,1918.8,0.47574835]
[1688232724372,4.02216779,1919.0,1918.8,0.47574835]
[1688232724769,3.282,1919.0,1918.9,3.77528412]
[1688232725070,4.19114694,1919.4,1919.0,0.104]
[1688232725372,4.19114694,1919.4,1919.2,3.281]
[1688232725373,0.40735391,1919.4,1919.2,3.281]
[1688232725578,7.40994694,1919.6,1919.3,0.31263]
[1688232725579,4.51472694,1919.6,1919.3,0.31263]
[1688232725875,4.51472694,1919.6,1919.3,0.47091122]
[1688232726174,3.58439474,1919.6,1919.4,0.56748412]
[1688232726377,3.58439474,1919.6,1919.5,0.3126]
[1688232726581,3.87111109,1919.6,1919.5,0.46898306]
[1688232727073,3.27181474,1919.6,1919.5,0.46898306]
[1688232727271,3.27181474,1919.6,1919.5,0.3126]
[1688232728874,3.68931429,1919.6,1919.5,0.46760201]
[1688232729071,4.00189429,1919.6,1919.5,0.46760201]
[1688232730087,4.28861064,1919.6,1919.5,0.46760201]
[1688232733696,4.28861064,1919.6,1919.5,0.40787109]
[1688232736695,4.00189429,1919.6,1919.5,0.40787109]
[1688232736893,3.68931429,1919.6,1919.5,0.40787109]
[1688232737288,4.00189429,1919.6,1919.5,0.40787109]
[1688232737493,4.28861064,1919.6,1919.5,0.40787109]
[1688232739892,9.10491064,1919.6,1919.5,0.40787109]
[1688232740805,8.81819429,1919.6,1919.5,0.40787109]
[1688232741808,9.10491064,1919.6,1919.5,0.40787109]
[1688232742102,9.09391064,1919.6,1919.5,0.40787109]
[1688232745508,8.80719429,1919.6,1919.5,0.40787109]
[1688232745915,8.49461429,1919.6,1919.5,0.40787109]
[1688232746702,8.80719429,1919.6,1919.5,0.40787109]
[1688232747909,8.49461429,1919.6,1919.5,0.40787109]
[1688232748809,8.80719429,1919.6,1919.5,0.40787109]
[1688232749207,9.09391064,1919.6,1919.5,0.40787109]
[1688232755916,0.42531429,1919.6,1919.5,0.40787109]
[1688232756119,0.42531429,1919.6,1919.5,3.68987109]
[1688232756317,0.42531429,1919.6,1919.5,3.5946]
[1688232760126,0.42531429,1919.6,1919.5,6.8024]
[1688232761322,0.00781474,1919.6,1919.5,6.9064]
[1688232761618,0.93814694,1920.0,1919.7,0.31256]
[1688232761818,3.266,1920.1,1919.9,0.31253]
[1688232762021,4.20414694,1920.1,1920.0,0.56748412]
[1688232762220,0.93814694,1920.1,1920.0,0.87999412]
[1688232763723,1.25063694,1920.1,1920.0,0.87999412]
[1688232763917,1.67244965,1920.1,1920.0,4.16199412]
[1688232764118,0.73430271,1920.1,1920.0,4.16199412]
[1688232769324,4.28701906,1920.1,1920.0,0.87999412]
[1688232769629,5.225166,1920.1,1920.0,0.31251]
[1688232778838,5.329166,1920.1,1919.8,0.78136]
[1688232779027,3.266,1919.9,1919.8,0.78136]
[1688232779229,3.86524635,1919.9,1919.8,0.31255]
[1688232779527,4.80339329,1919.9,1919.7,0.93759]
[1688232779727,0.31230999,1919.8,1919.7,0.93759]
[1688232779926,0.62485999,1919.8,1919.7,0.93759]
[1688232780428,5.46405999,1919.8,1919.7,0.93759]
[1688232782036,8.71705999,1919.8,1919.7,0.93759]
[1688232788543,11.92485999,1919.8,1919.7,0.93759]
[1688232788741,12.86300693,1919.8,1919.7,0.93759]
[1688232789648,12.86300693,1919.8,1919.6,0.78143]
[1688232789844,4.47786329,1919.7,1919.6,0.78143]
[1688232790145,4.79043329,1919.7,1919.6,0.78143]
[1688232792151,0.93814694,1919.7,1919.6,0.78143]
[1688232792452,1.25071694,1919.7,1919.6,0.78143]
[1688232792651,0.31257,1919.7,1919.6,0.78143]
[1688232792851,0.59928635,1919.7,1919.6,0.78143]
[1688232793254,1.53743329,1919.7,1919.6,0.78143]
[1688232798156,0.93814694,1919.7,1919.6,0.78143]
[1688232798567,0.31257,1919.7,1919.6,0.78143]
[1688232799263,0.59928635,1919.7,1919.6,0.78143]
[1688232806768,0.31257,1919.7,1919.6,0.78143]
[1688232809862,0.59928635,1919.7,1919.6,0.78143]
[1688232813670,1.53743329,1919.7,1919.6,0.78143]
[1688232814172,6.77693329,1919.7,1919.6,0.78143]
[1688232820875,6.49021694,1919.7,1919.6,0.78143]
[1688232827982,6.17764694,1919.7,1919.6,0.78143]
[1688232829982,6.49020694,1919.7,1919.6,0.78143]
[1688232830484,6.44874946,1919.7,1919.6,0.78143]
[1688232831181,0.89668946,1919.7,1919.6,0.78143]
[1688232831380,4.44671868,1919.8,1919.6,0.78143]
[1688232831983,3.97784868,1919.8,1919.7,0.56748412]
[1688232832183,1.01156503,1919.8,1919.7,0.31257]
[1688232834587,4.29356503,1919.8,1919.7,0.31257]
[1688232841692,4.00684868,1919.8,1919.7,0.31257]
[1688232843190,4.29356503,1919.8,1919.7,0.31257]
[1688232844991,4.00684868,1919.8,1919.7,0.31257]
[1688232846800,3.69429868,1919.8,1919.7,0.31257]
[1688232847797,3.98101503,1919.8,1919.7,0.31257]
[1688232848400,4.29356503,1919.8,1919.7,0.31257]
[1688232852102,1.01156503,1919.8,1919.7,0.31257]
[1688232856408,0.41229868,1919.8,1919.7,0.31257]
[1688232856796,0.31255,1919.8,1919.7,0.31257]
[1688232857604,10.06151821,1919.9,1919.7,0.31257]
[1688232857803,10.06151821,1919.9,1919.7,5.21807]
[1688232858800,9.74920822,1919.9,1919.7,5.21807]
[1688232860214,6.46720822,1919.9,1919.8,0.56748412]
[1688232860405,6.46720822,1919.9,1919.8,0.88003412]
[1688232862106,6.46720822,1919.9,1919.8,4.16203412]
[1688232862309,5.5290476,1919.9,1919.8,4.16203412]
[1688232863713,5.2164876,1919.9,1919.8,4.16203412]
[1688232864008,5.5290176,1919.9,1919.8,4.16203412]
[1688232864709,5.2164876,1919.9,1919.8,4.16203412]
[1688232865710,0.4237876,1919.9,1919.8,4.16203412]
[1688232866009,3.56553,1920.1,1919.8,4.16203412]
[1688232866408,4.50369062,1920.1,1919.8,4.16203412]
[1688232866805,4.50369062,1920.1,1919.8,4.26603412]
[1688232867316,1.25069062,1920.1,1920.0,0.31252]
[1688232867511,0.59924635,1920.1,1920.0,0.31252]
[1688232868209,8.5107123,1920.2,1920.0,0.31252]
[1688232868412,8.5107123,1920.2,1920.0,3.69852]
[1688232868413,0.53343651,1920.1,1920.0,3.69852]
[1688232868713,0.11311874,1920.1,1920.0,3.69852]
[1688232868909,0.14750794,1920.1,1920.0,4.26600412]
[1688232869411,0.46000794,1920.1,1920.0,4.16200412]
[1688232869603,0.14750794,1920.1,1920.0,4.16200412]
[1688232871708,0.45999794,1920.1,1920.0,4.16200412]
[1688232874816,0.14750794,1920.1,1920.0,4.16200412]
[1688232875117,0.46000794,1920.1,1920.0,4.16200412]
[1688232877219,0.14750794,1920.1,1920.0,4.16200412]